{"text_format":"1","workbook":"xlsx","n_sheets":7,"sheets":["Вентиляция Турков","Проект до 250м² ","Проект до 500 м²","Проект более 500 м²","Узлы","Работы","Турков (не брать)"],"not_rendered":{"charts":0,"images":4,"macros":1,"external_links":0,"defined_names":13,"comments":3,"pivot_tables":0},"unopened":[],"bounds":{"document_bytes":16777216,"sheet_cells":100000,"rows_first":2000,"rows_last":500,"rows_between":2000,"halvings":0,"cell_chars":16384,"cell_head_chars":4096},"cells_cut":0,"cells_raw":0,"read":"whole","date_system":"1900"}

{"sheet":"Вентиляция Турков","index":0,"n_rows":80,"n_cols":13,"rows_kept":80,"cut":false,"hidden":false,"merged":[[16,9,16,10],[80,9,81,10],[65,0,65,4],[65,5,65,6],[66,0,66,6],[71,5,71,6],[76,9,77,10],[0,0,0,6],[1,1,1,6],[2,0,2,6],[3,0,3,6],[73,5,73,6],[5,0,5,6],[18,0,60,0],[61,0,61,6],[64,0,64,4],[64,5,64,6],[6,0,14,0]]}
[]
[{"$f":"TODAY()","v":"2023-07-07"},"Данный сметный расчёт действителен 7 календарных дней. По истечению срока, цены могут быть изменены."]
["Сметный расчет Вентиляция ",null,null,null,null,null,null,null,"пие"]
["Приточная вентиляция "]
["Материалы/услуги","Описание","Кол-во","Ед.изм","Мат-ал, руб","Работа, руб ","Итого, руб",null,"Материал","Бригада","Прораб","Итого","Рента"]
[]
[" Первый этап ","Воздуховод гофрированный 2-х слойный в бухте  50м ",null,"бухт",{"$f":"I7/0.7*J80","v":0},null,{"$f":"E7+F7","v":0},null,{"$f":"C7*Узлы!D91","v":0},null,null,{"$f":"SUM(I7:K7)","v":0},{"$f":"IF(G7=0,\"\",(G7-I7)/G7)","v":""}]
[null,"Комплект прокладок, муфт, заглушек для гофрированного воздуховода (на 1 выход)",{"$f":"(C9*8)+(C10*12)+(C11*16)+(C12*20)","v":0},"шт",{"$f":"I8/0.7*J80","v":0},null,0,null,{"$f":"C8*(Узлы!D92+Узлы!D93+Узлы!D94+Узлы!D95+Узлы!D96)","v":0},null,null,{"$f":"SUM(I8:K8)","v":0},{"$f":"IF(G8=0,\"\",(G8-I8)/G8)","v":""}]
[null,"Коллектор (воздухораспределительная коробка) на 8 выходов",null,"шт",{"$f":"I9/0.85*J80","v":0},null,0,null,{"$f":"C9*Узлы!D121","v":0},{"$f":"C9*Работы!$B$8","v":0},{"$f":"J9*20%","v":0},0,""]
[null,"Коллектор (воздухораспределительная коробка) на 12 выходов",null,"шт",{"$f":"I10/0.85*J80","v":0},null,0,null,{"$f":"C10*Узлы!D122","v":0},{"$f":"C10*Работы!$B$8","v":0},{"$f":"J10*20%","v":0},0,""]
[null,"Коллектор (воздухораспределительная коробка) на 16 выходов",null,"шт",{"$f":"I11/0.85*J80","v":0},null,0,null,{"$f":"C11*Узлы!D123","v":0},{"$f":"C11*Работы!$B$8","v":0},{"$f":"J11*20%","v":0},0,""]
[null,"Коллектор (воздухораспределительная коробка) на 20 выходов",null,"шт",{"$f":"I12/0.85*J80","v":0},null,0,null,{"$f":"C12*Узлы!D124","v":0},{"$f":"C12*Работы!$B$8","v":0},0,0,""]
[null,"Вентиляционная точка (пленум для круглых диффузоров)",null,"шт",{"$f":"I13/0.85*J80","v":0},null,0,null,{"$f":"C13*Узлы!D131","v":0},{"$f":"C13*Работы!B7","v":0},0,0,""]
[null,"Вентиляционная точка (пленум для плоских решёток)",null,"шт",{"$f":"I14/0.85*J80","v":0},null,0,null,{"$f":"C14*Узлы!D126","v":0},{"$f":"C14*Работы!B7","v":0},0,0,""]
[null,"Расходные материалы, крепёж",null,"шт",{"$f":"I15/0.7*J80","v":0},null,0,null,{"$f":"C15*Узлы!D117","v":0},null,null,{"$f":"SUM(I15:K15)","v":0},""]
["Монтаж системы вентиляции 1 этап",null,null,null,null,{"$f":"SUM(J7:K14)/0.5*K80","v":0},null,null,null,null,null,0,{"$f":"IF(F16=0,\"\",(F16-SUM(J7:K15))/F16)","v":""}]
["Проектирование","Разработка документов для монтажа системы вентиляции",null,"Усл.",null,{"$f":"(J17+K17)/0.75","v":0},{"$f":"E17+F17","v":0},null,null,null,null,{"$f":"SUM(J17:K17)","v":0},{"$f":"IF(G17=0,\"\",(G17-L17)/G17)","v":""}]
["ИТОГО ПО ЭТАПУ 1",null,null,null,{"$f":"SUM(E7:E15)","v":0},{"$f":"F16+F17","v":0},{"$f":"E18+F18","v":0}]
["Второй этап ","1. Приточно-вытяжная установка Zenit 500 Standart EL/EL Е  2ст рекуператором, с электронагревателем, автоматикой",null,"шт",{"$f":"I19/0.7*J80","v":0},null,{"$f":"E19+F19","v":0},null,{"$f":"C19*Узлы!D11","v":0},{"$f":"C19*Работы!B2","v":0},0,0,{"$f":"IF(G19=0,\"\",(G19-I19)/G19)","v":""}]
[null,"Заслонка D200 с электроприводом и возвратной пружиной",null,"шт",{"$f":"I20/0.7*J80","v":0},null,{"$f":"E20+F20","v":0},null,{"$f":"C20*Узлы!D12","v":0},null,null,0,{"$f":"IF(G20=0,\"\",(G20-I20)/G20)","v":""}]
[null,"Блок охлаждения 2,5кВт:",null,"шт",{"$f":"I21/0.7*J80","v":0},null,0,null,null,null,null,0,""]
[null,"NEW COOL-BOX i 200D-600 2,5 кВт",null,"шт",null,null,null,null,null,null,null,null,""]
[null,"ККБ NEW COOL-BOX k 2.5",null,"шт",null,null,null,null,null,null,null,null,""]
[null,"Комплект фильтров для первого обслуживания (Фильтр карманный F5, комплект 2 шт.)",null,"шт",{"$f":"I24/0.7*J80","v":0},null,0,null,{"$f":"C24*Узлы!D16","v":0},null,null,0,""]
[null,"Комбинированная приточно-вытяжная решётка 200D",null,"шт",{"$f":"I25/0.7*J80","v":0},null,0,null,{"$f":"C25*Узлы!D17","v":0},{"$f":"C25*Работы!B5","v":0},0,0,""]
[null,"1. Приточно-вытяжная установка Zenit 700 Standart EL/EL Е  2ст рекуператором, с электронагревателем, автоматикой",null,"шт",{"$f":"I26/0.7*J80","v":0},null,0,null,{"$f":"C26*Узлы!D19","v":0},{"$f":"C26*Работы!B2","v":0},0,0,""]
[null,"Заслонка D250 с электроприводом и возвратной пружиной",null,"шт",{"$f":"I27/0.7*J80","v":0},null,0,null,{"$f":"C27*Узлы!D20","v":0},null,null,0,""]
[null,"Блок охлаждения 3,5кВт:",null,"шт",{"$f":"I28/0.7*J80","v":0},null,0,null,null,null,null,0,""]
[null,"NEW COOL-BOX i 250D-1000 3,5 кВт",null,"шт",null,null,null,null,null,null,null,null,""]
[null,"ККБ NEW COOL-BOX k 3.5",null,"шт",null,null,null,null,null,null,null,null,""]
[null,"Комплект фильтров для первого обслуживания (Фильтр карманный F5, комплект 2 шт.)",null,"шт",{"$f":"I31/0.7*J80","v":0},null,0,null,{"$f":"C31*Узлы!D24","v":0},null,null,0,""]
[null,"Комбинированная приточно-вытяжная решётка 250D",null,"шт",{"$f":"I32/0.7*J80","v":0},null,0,null,{"$f":"C32*Узлы!D25","v":0},{"$f":"C32*Работы!B5","v":0},0,0,""]
[null,"1. Приточно-вытяжная установка Zenit 350 HECO EL/EL Е с 3ступ рекуперацией с электронагревателем, автоматикой",null,"шт",{"$f":"I33/0.7*J80","v":0},null,0,null,{"$f":"C33*Узлы!D27","v":0},{"$f":"C33*Работы!B2","v":0},0,0,""]
[null,"Заслонка D160 с электроприводом и возвратной пружиной",null,"шт",{"$f":"I34/0.7*J80","v":0},null,0,null,{"$f":"C34*Узлы!D28","v":0},null,null,0,""]
[null,"Блок охлаждения 2,0кВт:",null,"шт",{"$f":"I35/0.7*J80","v":0},null,0,null,null,null,null,0,""]
[null,"NEW COOL-BOX i 160D-400 2,0 кВ",null,"шт",null,null,null,null,null,null,null,null,""]
[null,"ККБ NEW COOL-BOX k 2.0",null,"шт",null,null,null,null,null,null,null,null,""]
[null,"Комплект фильтров для первого обслуживания (Фильтр карманный F5)",null,"шт",{"$f":"I38/0.7*J80","v":0},null,0,null,{"$f":"C38*Узлы!D32","v":0},null,null,0,""]
[null,"Комбинированная приточно-вытяжная решётка 160D",null,"шт",{"$f":"I39/0.7*J80","v":0},null,0,null,{"$f":"C39*Узлы!D33","v":0},{"$f":"C39*Работы!B5","v":0},0,0,""]
[null,"1. Приточно-вытяжная установка Zenit 550 HECO EL/EL E с рекуперацией с электронагревателем, автоматикой",null,"шт",{"$f":"I40/0.7*J80","v":0},null,0,null,{"$f":"C40*Узлы!D35","v":0},{"$f":"C40*Работы!B2","v":0},0,0,""]
[null,"Заслонка D200 с электроприводом и возвратной пружиной",null,"шт",{"$f":"I41/0.7*J80","v":0},null,0,null,{"$f":"C41*Узлы!D36","v":0},null,null,0,""]
[null,"Блок охлаждения 2,5кВт:",null,"шт",{"$f":"I42/0.7*J80","v":0},null,0,null,null,null,null,0,""]
[null,"NEW COOL-BOX i 200D-600 2,5 кВт",null,"шт",null,null,null,null,null,null,null,null,""]
[null,"ККБ NEW COOL-BOX k 2.5",null,"шт",null,null,null,null,null,null,null,null,""]
[null,"Комплект фильтров для первого обслуживания (Фильтр карманный F5, комплект 2 шт.)",null,"шт",{"$f":"I45/0.7*J80","v":0},null,0,null,{"$f":"C45*Узлы!D40","v":0},null,null,0,""]
[null,"Комбинированная приточно-вытяжная решётка 200D",null,"шт",{"$f":"I46/0.7*J80","v":0},null,0,null,{"$f":"C46*Узлы!D41","v":0},{"$f":"C46*Работы!B5","v":0},0,0,""]
[null,"1. Приточно-вытяжная установка Zenit 750 HECO EL/EL E с рекуперацией с электронагревателем, автоматикой",null,"шт",{"$f":"I47/0.7*J80","v":0},null,0,null,{"$f":"C47*Узлы!D43","v":0},{"$f":"C47*Работы!B2","v":0},0,0,""]
[null,"Заслонка D250 с электроприводом и возвратной пружиной",null,"шт",{"$f":"I48/0.7*J80","v":0},null,0,null,{"$f":"C48*Узлы!D44","v":0},null,null,0,""]
[null,"Блок охлаждения 3,5кВт:",null,"шт",{"$f":"I49/0.7*J80","v":0},null,0,null,null,null,null,0,""]
[null,"NEW COOL-BOX i 250D-1000 3,5 кВт",null,"шт",null,null,null,null,null,null,null,null,""]
[null,"ККБ NEW COOL-BOX k 3.5",null,"шт",null,null,null,null,null,null,null,null,""]
[null,"Комплект фильтров для первого обслуживания (Фильтр карманный F5, комплект 2 шт.)",null,"шт",{"$f":"I52/0.7*J80","v":0},null,0,null,{"$f":"C52*Узлы!D48","v":0},null,null,0,""]
[null,"Комбинированная приточно-вытяжная решётка 250D",null,"шт",{"$f":"I53/0.7*J80","v":0},null,0,null,{"$f":"C53*Узлы!D49","v":0},{"$f":"C53*Работы!B5","v":0},0,0,""]
[null,"Кронштейны для напольного/настенного крепления",null,"компл.",{"$f":"I54/0.7*J80","v":0},null,{"$f":"E54+F54","v":0},null,{"$f":"C54*Узлы!D97","v":0},null,null,0,""]
[null,"Электроподключения установки, пульта, заслонок",null,"компл.",{"$f":"I55/0.7*J80","v":0},null,{"$f":"E55+F55","v":0},null,{"$f":"C55*Узлы!D118","v":0},null,null,0,""]
[null,"Датчик СО2 ",null,"шт",{"$f":"I56/0.7*J80","v":0},null,0,null,{"$f":"C56*Узлы!D86","v":0},null,null,0,""]
[null,"Пульт в сборе",null,"шт",{"$f":"I57/0.7*J80","v":0},null,0,null,{"$f":"C57*Узлы!D89","v":0},null,null,0,""]
[null,"Комплект шумоглушителей и дроссельных клапанов (2шумоглишителя, 2клапана)",null,"компл.",{"$f":"I58/0.7*J80","v":0},null,0,null,{"$f":"C58*Узлы!D119","v":0},{"$f":"C58*(Работы!B10*2)","v":0},0,0,""]
[null,"Магистральные воздуховоды и фасонные изделия",null,"компл.",{"$f":"I59/0.7*J80","v":0},null,0,null,{"$f":"C59*Узлы!D128","v":0},{"$f":"SUM(C9:C12)*Работы!B9","v":0},0,0,""]
[null,"Установка диффузора/решётки",{"$f":"C8","v":0},"шт",{"$f":"I60/0.7*J80","v":0},null,0,null,{"$f":"C60*Узлы!D133","v":0},null,null,0,""]
[null,"Изоляция, крепеж, расходные материалы",null,"компл.",{"$f":"I61/0.7*J80","v":0},null,0,null,{"$f":"C61*Узлы!D129","v":0},null,null,0,""]
[null,null,null,null,null,null,null,null,null,null,null,null,{"$f":"IF(G62=0,\"\",(G62-L62)/G62)","v":""}]
["Монтаж системы вентиляции 2 этап",null,null,"Усл.",null,{"$f":"SUM(J19:K61)/0.5*K80","v":0},{"$f":"F63","v":0},null,null,null,null,{"$f":"SUM(J63:K63)","v":0},{"$f":"IF(G63=0,\"\",(G63-SUM(J19:K61))/G63)","v":""}]
["ИТОГО ПО ЭТАПУ 2",null,null,null,{"$f":"SUM(E19:E61)","v":0},{"$f":"F63","v":0}]
["Итого материал:                                                                                                                                                                                                                                                ",null,null,null,null,{"$f":"SUM(E7:E61)-E18","v":0},null,null,null,null,null,{"$f":"SUM(I7:I63)","v":0},{"$f":"IF(F65=0,\"\",(F65-L65)/F65)","v":""}]
["Работа:                                                                                                                                                                                                                                                        ",null,null,null,null,{"$f":"SUM(F7:F63)-F18","v":0},null,null,null,null,null,{"$f":"SUM(J7:K63)","v":0},{"$f":"IF(F66=0,\"\",(F66-L66)/F66)","v":""}]
["Дополнительно"]
["Материалы/услуги","Описание","Кол-во","Ед.изм","Мат-ал, руб","Работа, руб ","Итого, руб",null,"Материал","Бригада","Прораб","Итого","Рента"]
["Проходные отверстия в плите","Алмазное сверление",1,"шт.",null,{"$f":"IF(C69=0,0,IF(C69<4,11000,IF(C69>3,9000+2300*(C69-3))))","v":11000},{"$f":"F69+E69","v":11000},null,null,10000]
["Подготовительные и накладные расходы","Включают разработку комплекта документов для монтажа, проверку ОТК и приемку каждого этапа работ инженерами технического надзора, соблюдение стандарта компании",1,"Усл.",null,{"$f":"51000","v":51000},{"$f":"F70*C70","v":51000},null,{"$f":"12500+(C60*700)","v":12500},{"$f":"(1500+1500+1500)*2","v":9000},{"$f":"2500*2","v":5000},{"$f":"(5500*2)+6500","v":17500}]
["Транспортные расходы ","Доставка оборудования и материалов на объект",1,"усл.",null,{"$f":"L71/0.8","v":37500},{"$f":"F71","v":37500},null,null,null,null,30000]
["Итого по смете:",null,null,null,null,{"$f":"SUM(F65:G66,G69:G71)","v":99500},null,null,{"$f":"SUM(I7:I63)+I70","v":12500},{"$f":"SUM(J7:J63,J69:J71)","v":19000},{"$f":"SUM(K7:K63,K69:K71)","v":5000},{"$f":"SUM(L69:L71,I72:K72)","v":84000},{"$f":"IF(F74=0,\"\",(F74-L72)/F74)","v":0.15577889447236182}]
["Скидка:"]
["Итого по смете со скидкой:",null,null,null,null,{"$f":"F72-G73","v":99500}]
["* При выполнении разводки под потолком необходимо добавить декоративный короб. При выполнении разводки в межэтажном перекрытии необходима дополнительная обрешётка."]
["** ПНР  выполняется по факту готовности объекта",null,null,null,null,null,{"$f":"Узлы!D1","v":"2023-07-07"}]
[null,null,null,null,null,null,null,null,null,"Коэффициент"]
[]
[null,null,null,null,null,null,null,null,null,"Мат","Раб"]
[null,null,null,null,null,null,null,null,null,1,1]

{"sheet":"Проект до 250м² ","index":1,"n_rows":54,"n_cols":15,"rows_kept":54,"cut":false,"hidden":false,"merged":[[29,6,29,8],[1,0,1,5],[1,10,1,14],[4,6,4,8],[6,6,6,8],[9,10,10,14],[12,10,13,14],[18,6,18,8],[21,6,21,8],[22,8,22,9],[23,6,23,8],[25,6,25,8],[30,6,30,8],[41,0,41,5],[42,1,42,3],[42,4,42,5],[43,1,43,3],[43,4,43,5],[52,4,52,5],[53,4,53,5],[54,1,54,5],[46,1,46,5],[47,1,47,5],[48,4,48,5],[49,4,49,5],[50,4,50,5],[51,4,51,5]]}
[]
["Прайс-лист на проектные работы квартиры и дома до 250 м²",null,null,null,null,null,null,null,null,null,"Итоговое коммереское предложение"]
[1,"Предварительная стадия  ",null,null,null,"Сумма",null,null,null,null,1,"Предварительная стадия  ","шт",1,{"$f":"F9","v":10800}]
["1.1","Сбор исходных данных","шт",1,3600,{"$f":"E4*D4","v":3600},null,null,null,null,2,"Раздел вентиляции","м2",{"$f":"D11","v":109.29},{"$f":"F18","v":25016.46}]
["1.2","Выезд на объект (в пределах МКАД)","шт",0,6000,{"$f":"E5*D5","v":0},"Убирается из сметы при отсутвии потребности выезда",null,null,null,3,"Раздел кондиционирования","м2",{"$f":"D23","v":0},{"$f":"F30","v":0}]
["1.3","Составление технического задания вентиляция","шт",1,4800,4800,null,null,null,null,4,"Раздел увлажнения","м2",{"$f":"D11","v":109.29},{"$f":"F32+F33","v":0}]
["1.4","Составление технического задания кондиционирование","шт",0,4800,0,"Убирается из сметы при отсутвии кондиционирования",null,null,null,null,"ИТОГО по предложению",null,null,{"$f":"SUM(O3:O6)","v":35816.46}]
["1.5","Отправка проекта и документов","шт",1,2400,2400]
[null,"ИТОГО по предварительной стадии:",null,null,null,{"$f":"SUM(F4:F8)","v":10800}]
[2,"Проект вентиляции",null,null,null,"Сумма"]
["2.1","Расчет и утверждение воздухообмена","м²",{"$f":"58.45+55.73-2.7-2.19","v":109.29},{"$f":"20*1.2","v":24},{"$f":"E11*D11","v":2622.96}]
["2.2","Подбор оборудования вентиляции","м²",{"$f":"58.45+55.73-2.7-2.19","v":109.29},{"$f":"20*1.2","v":24},2622.96]
["2.3","Планы системы вентиляции","м²",109.29,{"$f":"30*1.2","v":36},3934.44,null,null,null,null,"Заказчику направлять только данный вариант КП, подробную смету только при доп. запросе заказчика"]
["2.4","Спецификация вентиляции","м²",109.29,{"$f":"35*1.2","v":42},4590.18]
["2.5","Изометрическая схема вентиляция","м²",109.29,{"$f":"20*1.2","v":24},2622.96]
["2.6","Техническое задание на подключение силового электропитания и план автоматизации","м²",109.29,{"$f":"20*1.2","v":24},2622.96]
["2.7","Изготовление пояснительной записки","шт",1,{"$f":"5000*1.2","v":6000},{"$f":"E17*D17","v":6000}]
[null,"ИТОГО за раздел вентиляции:",null,null,null,{"$f":"SUM(F11:F17)","v":25016.46}]
[3,"Проект кондиционирования",null,null,null,"Сумма","Указывать площадь ТОЛЬКО обслуживаемых помещений (Σ спален, детских, кабинетов)"]
["3.1","Расчет теплопритоков","м²",0,{"$f":"30*1.2","v":36},{"$f":"D20*E20","v":0}]
["3.2","Подбор оборудования кондиционирования","м²",0,{"$f":"20*1.2","v":24},{"$f":"D21*E21","v":0}]
["3.3","Планы системы канального кондиционирования","м²",0,{"$f":"35*1.2","v":42},0,"Убирается из сметы при отсутвии канального кондиционирования"]
["3.4","Планы системы фреонового трубопровода и дренажа","м²",0,{"$f":"30*1.2","v":36},0]
["3.5","Спецификация вентразводки канального кондиционирования","м²",0,{"$f":"20*1.2","v":24},0,"Убирается из сметы при отсутвии канального кондиционирования"]
["3.6","Спецификация фреонового трубопровода и дренажа","м²",0,{"$f":"20*1.2","v":24},0]
["3.7","Изометрическая схема вентразводки канального кондиционирования","м²",0,{"$f":"20*1.2","v":24},0,"Убирается из сметы при отсутвии канального кондиционирования"]
["3.8","Изометрическая схема фреонового трубопровода и дренажа","м²",0,{"$f":"20*1.2","v":24},0]
["3.9","Техническое задание на подключение силового электропитания и  автоматизации  кондиционирования","м²",0,{"$f":"20*1.2","v":24},0]
["3.10","Изготовление пояснительной записки","шт",0,{"$f":"5000*1.2","v":6000},0]
[null,"ИТОГО за раздел кондиционирования:",null,null,null,{"$f":"SUM(F20:F29)","v":0},"при потребности в центральном охладителе в проекте в ячейке площадь указывать 0 м², стоимость давать фиксированную 10 000 руб."]
[4,"Проект увлажнения",null,null,null,"Сумма","При расчете проекта увлажнения выбрать корректную площадь из предложенных вариантов "]
["4.1","Объект менее 100 м²","шт",0,15000,{"$f":"E32*D32","v":0}]
["4.2","Объект более 100 м² до 250 м²","шт",0,10000,{"$f":"E33*D33","v":0}]
[null,"ИТОГО по предложению",null,null,null,{"$f":"(F9+F18+F30+F32+F33)","v":35816.46}]
[]
[]
[5,"ОПЦИОНАЛЬНО",null,null,null,"Сумма"]
["5.1","Дополнительная рабочая встреча","шт",1,{"$f":"5000*1.2","v":6000},{"$f":"E38*D38","v":6000}]
["5.2","VAV система","шт",1,{"$f":"10000*1.2","v":12000},12000]
["5.3","Выезд на объект до 50км от МКАД","шт",1,{"$f":"8000*1.2","v":9600},9600]
[]
["При нестандартных объектах суммы разделов умножать на дополнительный коэффициент"]
["1","Коммерческие и административные помещения",null,null,0.7]
["2","Фахверк",null,null,1.5]
[]
[]
[null,"Примечания:"]
["1","Возможно изготовление монтажной схемы. Тогда позиции, общие данные, пояснительная записка, изометрические схемы вычитаются из стоимости проекта"]
["2","Средняя цена за 1 м²",null,"м²","руб/м²"]
[null,"Проект вентиляции ",null,{"$f":"D15","v":109.29},{"$f":"F18/D50","v":228.89980785067249}]
[null,"Проект канального кондиционирования",null,{"$f":"D22","v":0},{"$f":"F30/D51","v":{"$error":"#DIV/0!"}}]
[null,"Проект настенного кондиционирования",null,{"$f":"D20","v":0},{"$f":"F30/D52","v":{"$error":"#DIV/0!"}}]
[null,"Проект увлажнения",null,{"$f":"D11","v":109.29},{"$f":"(F32+F33)/D53","v":0}]
[3,"ОБЩАЯ СТОИМОСТЬ",null,null,{"$f":"F34/D11","v":327.71946198188306}]

{"sheet":"Проект до 500 м²","index":2,"n_rows":52,"n_cols":15,"rows_kept":52,"cut":false,"hidden":false,"merged":[[16,12,16,14],[1,0,1,5],[1,10,1,14],[4,6,4,8],[6,6,6,8],[11,10,12,14],[17,12,17,14],[18,6,18,8],[18,12,18,14],[20,12,20,14],[21,6,21,8],[21,12,21,14],[44,1,44,5],[22,12,22,14],[23,6,23,8],[24,12,24,14],[25,6,25,8],[25,12,25,14],[29,6,29,8],[39,0,39,5],[40,1,40,3],[40,4,40,5],[41,1,41,3],[41,4,41,5],[51,4,51,5],[45,1,45,5],[46,4,46,5],[47,4,47,5],[48,4,48,5],[49,4,49,5],[50,4,50,5]]}
[]
["Прайс-лист на проектные работы квартиры и дома от 250 м² до 500 м²",null,null,null,null,null,null,null,null,null,"Итоговое коммереское предложение"]
[1,"Предварительная стадия  ",null,null,null,"Сумма",null,null,null,null,1,"Предварительная стадия  ","шт",1,{"$f":"F9","v":15600}]
["1.1","Сбор исходных данных","шт",1,{"$f":"3000*1.2","v":3600},{"$f":"E4*D4","v":3600},null,null,null,null,2,"Раздел вентиляции","м²",{"$f":"D11","v":463},{"$f":"F18","v":79894.8}]
["1.2","Выезд на объект (в пределах МКАД)","шт",0,8000,{"$f":"E5*D5","v":0},"Убирается из сметы при отсутвии потребности выезда",null,null,null,3,"Раздел кондиционирования","м²",{"$f":"D20","v":282},{"$f":"F30","v":47284.800000000003}]
["1.3","Составление технического задания вентиляция","шт",1,{"$f":"4000*1.2","v":4800},{"$f":"E6*D6","v":4800},null,null,null,null,4,"Раздел увлажнения","м²",{"$f":"D11","v":463},{"$f":"F32","v":0}]
["1.4","Составление технического задания кондиционирование","шт",1,{"$f":"4000*1.2","v":4800},{"$f":"E7*D7","v":4800},"Убирается из сметы при отсутвии кондиционирования",null,null,null,null,"ИТОГО по предложению",null,null,{"$f":"SUM(O3:O6)","v":142779.6}]
["1.5","Отправка проекта и документов","шт",1,{"$f":"2000*1.2","v":2400},{"$f":"E8*D8","v":2400}]
[null,"ИТОГО по предварительной стадии:",null,null,null,{"$f":"SUM(F4:F8)","v":15600}]
[2,"Проект вентиляции",null,null,null,"Сумма"]
["2.1","Расчет и утверждение воздухообмена","м²",463,{"$f":"18*1.2","v":21.599999999999998},{"$f":"E11*D11","v":10000.799999999999}]
["2.2","Подбор оборудования вентиляции","м²",463,{"$f":"18*1.2","v":21.599999999999998},{"$f":"E12*D12","v":10000.799999999999},null,null,null,null,"Заказчику направлять только данный вариант КП, подробную смету только при доп. запросе заказчика"]
["2.3","Планы системы вентиляции","м²",463,{"$f":"28*1.2","v":33.6},15556.800000000001]
["2.4","Спецификация вентиляции","м²",463,{"$f":"33*1.2","v":39.6},18334.8]
["2.5","Изометрическая схема вентиляция","м²",463,{"$f":"18*1.2","v":21.599999999999998},10000.799999999999]
["2.6","Техническое задание на подключение силового электропитания и план автоматизации","м²",463,{"$f":"18*1.2","v":21.599999999999998},10000.799999999999]
["2.7","Изготовление пояснительной записки","шт",1,{"$f":"5000*1.2","v":6000},6000]
[null,"ИТОГО за раздел вентиляции:",null,null,null,{"$f":"SUM(F11:F17)","v":79894.8}]
[3,"Проект кондиционирования*",null,null,null,"Сумма","Указывать площадь ТОЛЬКО обслуживаемых помещений (Σ спален, детских кабинетов)"]
["3.1","Расчет теплопритоков","м²",282,{"$f":"27*1.2","v":32.4},{"$f":"D20*E20","v":9136.7999999999993}]
["3.2","Подбор оборудования кондиционирования","м²",282,{"$f":"17*1.2","v":20.399999999999999},{"$f":"D21*E21","v":5752.7999999999993}]
["3.3","Планы системы канального кондиционирования","м²",0,{"$f":"32*1.2","v":38.4},0,"Убирается из сметы при отсутвии канального кондиционирования"]
["3.4","Планы системы фреонового трубопровода и дренажа","м²",282,{"$f":"27*1.2","v":32.4},9136.7999999999993]
["3.5","Спецификация вентразводки канального кондиционирования","м²",0,{"$f":"17*1.2","v":20.399999999999999},0,"Убирается из сметы при отсутвии канального кондиционирования"]
["3.6","Спецификация фреонового трубопровода и дренажа","м²",282,{"$f":"17*1.2","v":20.399999999999999},5752.7999999999993]
["3.7","Изометрическая схема вентразводки канального кондиционирования","м²",0,{"$f":"17*1.2","v":20.399999999999999},0,"Убирается из сметы при отсутвии канального кондиционирования"]
["3.8","Изометрическая схема фреонового трубопровода и дренажа","м²",282,{"$f":"17*1.2","v":20.399999999999999},5752.7999999999993]
["3.9","Техническое задание на подключение силового электропитания и  автоматизации  кондиционирования","м²",282,{"$f":"17*1.2","v":20.399999999999999},5752.7999999999993]
["3.10","Изготовление пояснительной записки","шт",1,{"$f":"5000*1.2","v":6000},6000]
[null,"ИТОГО за раздел кондиционирования:",null,null,null,{"$f":"SUM(F20:F29)","v":47284.800000000003},"при потребности в центральном охладителе в проекте в ячейке площадь указывать 0 м², стоимость давать фиксированную 15 000 руб."]
[4,"Проект увлажнения",null,null,null,"Сумма"]
["4.1","Объект от 250 м² до 500 м²","шт",0,10000,{"$f":"E32*D32","v":0}]
[null,"ИТОГО по предложению",null,null,null,{"$f":"F9+F18+F30+F32","v":142779.6}]
[]
[5,"ОПЦИОНАЛЬНО",null,null,null,"Сумма"]
["5.1","Дополнительная рабочая встреча","шт",1,{"$f":"5000*1.2","v":6000},{"$f":"E36*D36","v":6000}]
["5.2","VAV система","шт",1,{"$f":"10000*1.2","v":12000},{"$f":"E37*D37","v":12000}]
["5.3","Выезд на объект до 50км/МКАД","шт",1,{"$f":"8000*1.2","v":9600},{"$f":"E38*D38","v":9600}]
[]
["При нестандартных объектах суммы разделов умножать на дополнительный коэффициент"]
["1","Коммерческие и административные помещения",null,null,0.7]
["2","Фахверк",null,null,1.5]
[]
[]
[null,"Примечания:"]
["1","Возможно изготовление монтажной схемы. Тогда позиции, общие данные, пояснительная записка, изометрические схемы вычитаются из стоимости проекта"]
["2","Средняя цена за 1 м²",null,"м²","руб/м²"]
[null,"Проект вентиляции ",null,{"$f":"D15","v":463},{"$f":"F18/D48","v":172.55896328293738}]
[null,"Проект канального кондиционирования",null,{"$f":"D22","v":0},{"$f":"F30/D49","v":{"$error":"#DIV/0!"}}]
[null,"Проект настенного кондиционирования",null,{"$f":"D20","v":282},{"$f":"F30/D50","v":167.67659574468087}]
[null,"Проект увлажнения",null,{"$f":"D11","v":463},{"$f":"F32/D51","v":0}]
[3,"ОБЩАЯ СТОИМОСТЬ",null,null,{"$f":"F33/D11","v":308.37926565874733}]

{"sheet":"Проект более 500 м²","index":3,"n_rows":61,"n_cols":15,"rows_kept":61,"cut":false,"hidden":false,"merged":[[41,1,41,3],[41,4,41,5],[1,0,1,5],[1,10,1,14],[4,6,4,8],[6,6,6,8],[12,10,13,14],[18,6,18,8],[21,6,21,8],[23,6,23,8],[25,6,25,8],[29,6,29,8],[40,0,40,5],[53,1,53,5],[42,1,42,3],[42,4,42,5],[44,1,44,5],[45,1,45,5],[46,4,46,5],[47,4,47,5],[48,4,48,5],[49,4,49,5],[50,4,50,5],[51,4,51,5],[52,1,52,5]]}
[]
["Прайс-лист на проектные работы квартиры и дома более 500 м²",null,null,null,null,null,null,null,null,null,"Итоговое коммереское предложение"]
[1,"Предварительная стадия  ",null,null,null,"Сумма",null,null,null,null,1,"Предварительная стадия  ","шт",1,{"$f":"F9","v":15600}]
["1.1","Сбор исходных данных","шт",1,{"$f":"3000*1.2","v":3600},{"$f":"E4*D4","v":3600},null,null,null,null,2,"Раздел вентиляции","м2",{"$f":"D11","v":860},{"$f":"F18","v":118488}]
["1.2","Выезд на объект (в пределах МКАД)","шт",0,6000,{"$f":"E5*D5","v":0},"Убирается из сметы при отсутвии потребности выезда",null,null,null,3,"Раздел кондиционирования","м2",{"$f":"D20","v":313},{"$f":"F30","v":48067.199999999997}]
["1.3","Составление технического задания вентиляция","шт",1,{"$f":"4000*1.2","v":4800},{"$f":"E6*D6","v":4800},null,null,null,null,4,"Раздел увлажнения","м2"]
["1.4","Составление технического задания кондиционирование","шт",1,{"$f":"4000*1.2","v":4800},4800,"Убирается из сметы при отсутвии кондиционирования",null,null,null,null,"ИТОГО по предложению",null,null,{"$f":"SUM(O3:O6)","v":182155.2}]
["1.5","Отправка проекта и документов","шт",1,{"$f":"2000*1.2","v":2400},2400]
[null,"ИТОГО по предварительной стадии:",null,null,null,{"$f":"SUM(F4:F8)","v":15600}]
[2,"Проект вентиляции",null,null,null,"Сумма"]
["2.1","Расчет и утверждение воздухообмена","м²",860,{"$f":"14*1.2","v":16.8},{"$f":"E11*D11","v":14448}]
["2.2","Подбор оборудования вентиляции","м²",860,{"$f":"14*1.2","v":16.8},{"$f":"E12*D12","v":14448}]
["2.3","Планы системы вентиляции","м²",860,{"$f":"24*1.2","v":28.799999999999997},{"$f":"E13*D13","v":24767.999999999996},null,null,null,null,"Заказчику направлять только данный вариант КП, подробную смету только при доп. запросе заказчика"]
["2.4","Спецификация вентиляции","м²",860,{"$f":"29*1.2","v":34.799999999999997},29927.999999999996]
["2.5","Изометрическая схема вентиляция","м²",860,{"$f":"14*1.2","v":16.8},14448]
["2.6","Техническое задание на подключение силового электропитания и план автоматизации","м²",860,{"$f":"14*1.2","v":16.8},14448]
["2.7","Изготовление пояснительной записки","шт",1,{"$f":"5000*1.2","v":6000},{"$f":"E17*D17","v":6000}]
[null,"ИТОГО за раздел вентиляции:",null,null,null,{"$f":"SUM(F11:F17)","v":118488}]
[3,"Проект кондиционирования",null,null,null,"Сумма","Указывать площадь ТОЛЬКО обслуживаемых помещений (Σ спален, детских, кабинетов)"]
["3.1","Расчет теплопритоков","м²",313,{"$f":"24*1.2","v":28.799999999999997},{"$f":"D20*E20","v":9014.4}]
["3.2","Подбор оборудования кондиционирования","м²",313,{"$f":"16*1.2","v":19.2},6009.5999999999995]
["3.3","Планы системы канального кондиционирования","м²",0,{"$f":"29*1.2","v":34.799999999999997},0,"Убирается из сметы при отсутвии канального кондиционирования"]
["3.4","Планы системы фреонового трубопровода и дренажа","м²",313,{"$f":"24*1.2","v":28.799999999999997},9014.4]
["3.5","Спецификация вентразводки канального кондиционирования","м²",0,{"$f":"16*1.2","v":19.2},0,"Убирается из сметы при отсутвии канального кондиционирования"]
["3.6","Спецификация фреонового трубопровода и дренажа","м²",313,{"$f":"16*1.2","v":19.2},6009.5999999999995]
["3.7","Изометрическая схема вентразводки канального кондиционирования","м²",0,{"$f":"16*1.2","v":19.2},0,"Убирается из сметы при отсутвии канального кондиционирования"]
["3.8","Изометрическая схема фреонового трубопровода и дренажа","м²",313,{"$f":"16*1.2","v":19.2},6009.5999999999995]
["3.9","Техническое задание на подключение силового электропитания и  автоматизации  кондиционирования","м²",313,{"$f":"16*1.2","v":19.2},6009.5999999999995]
["3.10","Изготовление пояснительной записки","шт",1,{"$f":"5000*1.2","v":6000},{"$f":"D29*E29","v":6000}]
[null,"ИТОГО за раздел кондиционирования:",null,null,null,{"$f":"SUM(F20:F29)","v":48067.199999999997},"при потребности в центральном охладителе в проекте, в ячейке площадь указывать 0 м², стоимость давать фиксированную 10 000 руб."]
[4,"Проект увлажнения",null,null,null,"Сумма"]
["4.1","Объект от 500 м² до 1000 м²","шт",0,10000,{"$f":"E32*D32","v":0}]
[null,"ИТОГО по предложению",null,null,null,{"$f":"F9+F18+F30+F32","v":182155.2}]
[]
[5,"ОПЦИОНАЛЬНО",null,null,null,"Сумма"]
["5.1","Дополнительная рабочая встреча","шт",1,5000,{"$f":"E36*D36","v":5000}]
["5.4","VAV система","шт",1,10000,10000]
["5.5","Выезд на объект до 50км/МКАД","шт",1,8000,8000]
[]
[]
["При нестандартных объектах суммы разделов умножать на дополнительный коэффициент"]
["1","Коммерческие и административные помещения",null,null,0.7]
["2","Фахверк",null,null,1.5]
[]
[null,"Примечания:"]
["1","Возможно изготовление монтажной схемы. Тогда позиции, общие данные, пояснительная записка, изометрические схемы вычитаются из стоимости проекта"]
["2","Средняя цена за 1 м²",null,"м²","руб/м²"]
[null,"Проект вентиляции ",null,{"$f":"D11","v":860},{"$f":"F18/D48","v":137.7767441860465}]
[null,"Проект канального кондиционирования",null,{"$f":"D20","v":313},{"$f":"F30/D49","v":153.56932907348241}]
[null,"Проект настенного кондиционирования",null,{"$f":"D25","v":313},{"$f":"F30/D50","v":153.56932907348241}]
[null,"Проект увлажнения",null,{"$f":"D16","v":860},{"$f":"F32/D51","v":0}]
[3,"ОБЩАЯ СТОИМОСТЬ",null,null,{"$f":"F33/D16","v":211.80837209302328}]
[]
[]
[]
[]
[]
[]
[]
[]
[" "]

{"sheet":"Узлы","index":4,"n_rows":142,"n_cols":21,"rows_kept":142,"cut":false,"hidden":false,"merged":[[99,4,103,4],[105,4,114,4]]}
["С электрическим догревателем:",null,null,"2023-07-07"]
[null,"Розничная цена","Скидка","Цена Гуд Вуд "]
["1. Приточно-вытяжная установка Zenit Standart 300 Е с 2ступ рекуператором, электронагревателем, автоматикой",240000,0.3,{"$f":"B3*0.7","v":168000}]
["Заслонка D160 с электроприводом и возвратной пружиной",15500,0.3,{"$f":"B4*0.7","v":10850}]
["Блок охлаждения:"]
["NEW COOL-BOX i 160D-400 2,0 кВ",58000,0.3,40600]
["ККБ NEW COOL-BOX k 2.0",60000,0.3,42000]
["Комплект фильтров для первого обслуживания (Фильтр карманный F5)",1800,0.3,1260]
["Комбинированная приточно-вытяжная решётка 160D",8450,0.3,5915]
[]
["1. Приточно-вытяжная установка Zenit 500 Standart EL/EL Е  2ст рекуператором, с электронагревателем, автоматикой",270000,0.3,{"$f":"B11*0.7","v":189000}]
["Заслонка D200 с электроприводом и возвратной пружиной",15950,0.3,{"$f":"B12*0.7","v":11165}]
["Блок охлаждения:"]
["NEW COOL-BOX i 200D-600 2,5 кВт",62000,0.3,{"$f":"B14*0.7","v":43400}]
["ККБ NEW COOL-BOX k 2.5",66000,0.3,{"$f":"B15*0.7","v":46200}]
["Комплект фильтров для первого обслуживания (Фильтр карманный F5, комплект 2 шт.)",2000,0.3,{"$f":"B16*0.7","v":1400}]
["Комбинированная приточно-вытяжная решётка 200D",9750,0.3,{"$f":"B17*0.7","v":6825}]
[]
["1. Приточно-вытяжная установка Zenit 700 Standart EL/EL Е  2ст рекуператором, с электронагревателем, автоматикой",285000,0.3,{"$f":"B19*0.7","v":199500}]
["Заслонка D250 с электроприводом и возвратной пружиной",16100,0.3,{"$f":"B20*0.7","v":11270}]
["Блок охлаждения:",null,null,0]
["NEW COOL-BOX i 250D-1000 3,5 кВт",80000,0.3,56000]
["ККБ NEW COOL-BOX k 3.5",87000,0.3,60899.999999999993]
["Комплект фильтров для первого обслуживания (Фильтр карманный F5, комплект 2 шт.)",2500,0.3,1750]
["Комбинированная приточно-вытяжная решётка 250D",12350,0.3,8645]
[]
["1. Приточно-вытяжная установка Zenit 350 HECO EL/EL Е с 3ступ рекуперацией с электронагревателем, автоматикой",260000,0.3,{"$f":"B27*0.7","v":182000}]
["Заслонка D160 с электроприводом и возвратной пружиной",15500,0.3,{"$f":"B28*0.7","v":10850}]
["Блок охлаждения:"]
["NEW COOL-BOX i 160D-400 2,0 кВ",58000,0.3,{"$f":"B30*0.7","v":40600}]
["ККБ NEW COOL-BOX k 2.0",60000,0.3,{"$f":"B31*0.7","v":42000}]
["Комплект фильтров для первого обслуживания (Фильтр карманный F5)",1800,0.3,{"$f":"B32*0.7","v":1260}]
["Комбинированная приточно-вытяжная решётка 160D",8450,0.3,{"$f":"B33*0.7","v":5915}]
[]
["1. Приточно-вытяжная установка Zenit 550 HECO EL/EL E с рекуперацией с электронагревателем, автоматикой",320000,0.3,{"$f":"B35*0.7","v":224000}]
["Заслонка D200 с электроприводом и возвратной пружиной",15950,0.3,{"$f":"B36*0.7","v":11165}]
["Блок охлаждения:"]
["NEW COOL-BOX i 200D-600 2,5 кВт",62000,0.3,43400]
["ККБ NEW COOL-BOX k 2.5",66000,0.3,46200]
["Комплект фильтров для первого обслуживания (Фильтр карманный F5, комплект 2 шт.)",2000,0.3,1400]
["Комбинированная приточно-вытяжная решётка 200D",9750,0.3,6825]
[]
["1. Приточно-вытяжная установка Zenit 750 HECO EL/EL E с рекуперацией с электронагревателем, автоматикой",430000,0.3,{"$f":"B43*0.7","v":301000}]
["Заслонка D250 с электроприводом и возвратной пружиной",16100,0.3,{"$f":"B44*0.7","v":11270}]
["Блок охлаждения:"]
["NEW COOL-BOX i 250D-1000 3,5 кВт",80000,0.3,56000]
["ККБ NEW COOL-BOX k 3.5",87000,0.3,60899.999999999993]
["Комплект фильтров для первого обслуживания (Фильтр карманный F5, комплект 2 шт.)",2750,0.3,1924.9999999999998]
["Комбинированная приточно-вытяжная решётка 250D",12350,0.3,8645]
[]
["С водяным догревателем:"]
["1. Приточно-вытяжная установка Zenit 700 Standart EL/EL W  2ст рекуператором, с водяным нагревателем и смесительным узлом, автоматикой",440000,0.3,{"$f":"B52*0.7","v":308000}]
["Заслонка D250 с электроприводом и возвратной пружиной",16100,0.3,{"$f":"B53*0.7","v":11270}]
["Блок охлаждения:",null,null,{"$f":"B54*0.7","v":0}]
["NEW COOL-BOX i 250D-1000 3,5 кВт",80000,0.3,{"$f":"B55*0.7","v":56000}]
["ККБ NEW COOL-BOX k 3.5",87000,0.3,{"$f":"B56*0.7","v":60899.999999999993}]
["Блок увлажнителя:"]
["HumiBox Pump 3",140000,0.3,{"$f":"B58*0.7","v":98000}]
["HumiBox 1000",125500,0.3,{"$f":"B59*0.7","v":87850}]
["Комплект фильтров для первого обслуживания (Фильтр карманный F5, комплект 2 шт.)",2500,0.3,{"$f":"B60*0.7","v":1750}]
["Комбинированная приточно-вытяжная решётка 250D",12350,0.3,{"$f":"B61*0.7","v":8645}]
[]
["1. Приточно-вытяжная установка Zenit 550 HECO EL/EL W с рекуперацией с водяным нагревателем и смесительным узлом, автоматикой",410000,0.3,{"$f":"B63*0.7","v":287000}]
["Заслонка D200 с электроприводом и возвратной пружиной",15950,0.3,{"$f":"B64*0.7","v":11165}]
["Блок охлаждения:"]
["NEW COOL-BOX i 200D-600 2,5 кВт",62000,0.3,{"$f":"B66*0.7","v":43400}]
["ККБ NEW COOL-BOX k 2.5",66000,0.3,{"$f":"B67*0.7","v":46200}]
["Блок увлажнителя:"]
["HumiBox Pump 3",140000,0.3,{"$f":"B69*0.7","v":98000}]
["HumiBox 600",85000,0.3,{"$f":"B70*0.7","v":59499.999999999993}]
["Комплект фильтров для первого обслуживания (Фильтр карманный F5, комплект 2 шт.)",2000,0.3,{"$f":"B71*0.7","v":1400}]
["Комбинированная приточно-вытяжная решётка 200D",9750,0.3,{"$f":"B72*0.7","v":6825}]
[]
["1. Приточно-вытяжная установка Zenit 750 HECO EL/EL W с рекуперацией с электронагревателем, автоматикой",600000,0.3,{"$f":"B74*0.7","v":420000}]
["Заслонка D250 с электроприводом и возвратной пружиной",16100,0.3,{"$f":"B75*0.7","v":11270}]
["Блок охлаждения:"]
["NEW COOL-BOX i 250D-1000 3,5 кВт",80000,0.3,{"$f":"B77*0.7","v":56000}]
["ККБ NEW COOL-BOX k 3.5",87000,0.3,{"$f":"B78*0.7","v":60899.999999999993}]
["Блок увлажнителя:"]
["HumiBox Pump 3",140000,0.3,{"$f":"B80*0.7","v":98000}]
["HumiBox 1000",125500,0.3,{"$f":"B81*0.7","v":87850}]
["Комплект фильтров для первого обслуживания (Фильтр карманный F5, комплект 2 шт.)",2750,0.3,{"$f":"B82*0.7","v":1924.9999999999998}]
["Комбинированная приточно-вытяжная решётка 250D",12350,0.3,{"$f":"B83*0.7","v":8645}]
[]
["Датчики СО2 и автоматика:"]
["Встроенный в установку датчик CO2",10200,0.3,{"$f":"B86*0.7","v":7140}]
["Встроенный в установку датчик Stereo VAV",12000,0.3,{"$f":"B87*0.7","v":8400}]
["Встроенный в установку датчик VAV",10000,0.3,{"$f":"B88*0.7","v":7000}]
["Пульт в сборе",25000,0.3,{"$f":"B89*0.7","v":17500}]
[]
["Воздуховод гофрированный 2-х слойный в бухте D75, 50м ",25000,0.3,{"$f":"B91*0.7","v":17500}]
["Муфты D75 для подключения диффузоров",500,{"$f":"$C$91","v":0.3},{"$f":"B92*0.7","v":350}]
["Фланец Schiberg d75 мм",500,{"$f":"$C$91","v":0.3},350]
["Заглушка Schiberg d75",150,0.3,105]
["Дроссель для гофрир. воздуховода Schiberg d75",150,0.3,105]
["Муфта соединительная Schiberg d75 - 300 руб",300,0.3,210]
["Кронштейны для напольного/настенного крепления - 5'000 руб. (кронштейн настенный, 4 виброопоры, площадка крепежная)",5000,0.3,3500]
[]
["Комплект шумоглушителей и дроссельных клапанов:    "]
["Заслонка 125 с приводом и возвратной пружиной - 14850 руб.",14850,0.3,{"$f":"B100*0.7","v":10395},{"$f":"SUM(D100:D104)/5","v":11340}]
["Заслонка 160 с приводом и возвратной пружиной - 15500 руб.",15500,0.3,{"$f":"B101*0.7","v":10850}]
["Заслонка 200 с приводом и возвратной пружиной - 15950 руб.",15950,0.3,11165]
["Заслонка 250 с приводом и возвратной пружиной - 16100 руб.",16100,0.3,11270]
["Заслонка 315 с приводом и возвратной пружиной - 18600 руб.",18600,0.3,13020]
[]
["Шумоглушитель для круглых каналов Д125/900 - 6400 руб.",6400,0.3,{"$f":"B106*0.7","v":4480},{"$f":"SUM(D106:D115)/10","v":6237}]
["Шумоглушитель для круглых каналов Д160/900 - 6700 руб.",6700,0.3,{"$f":"B107*0.7","v":4690}]
["Шумоглушитель для круглых каналов Д200/900 - 8100 руб.",8100,0.3,5670]
["Шумоглушитель для круглых каналов Д250/900 - 9800 руб.",9800,0.3,6860]
["Шумоглушитель для круглых каналов Д315/900 - 15500 руб.",15500,0.3,10850]
["Шумоглушитель для круглых каналов Д125/600 - 5900 руб.",5900,0.3,4130]
["Шумоглушитель для круглых каналов Д160/600 - 6400 руб.",6400,0.3,4480]
["Шумоглушитель для круглых каналов Д200/600 - 7100 руб.",7100,0.3,4970]
["Шумоглушитель для круглых каналов Д250/600 - 8700 руб.",8700,0.3,6090]
["Шумоглушитель для круглых каналов Д315/600 - 14500 руб",14500,0.3,10150]
[]
["Расходные материалы, крепёж на первый этап",null,null,3000,"цена примерная со слов Виктора"]
["Электроматериал для подключения вент.установки",null,null,{"$f":"14500/4","v":3625},"узел электрики на ПНР /4 со слов Виктора"]
["Комплект из счёта *2 ",null,null,{"$f":"(2174+2440)*2+10270","v":19498},"согласно счёта (см. правее)"]
[]
["Коллектор (воздухораспределительная коробка) на 8 выходов",8400,0.15,{"$f":"B121*0.85","v":7140}]
["Коллектор (воздухораспределительная коробка) на 12 выходов",13800,0.15,{"$f":"B122*0.85","v":11730}]
["Коллектор (воздухораспределительная коробка) на 16 выходов",18400,0.15,15640]
["Коллектор (воздухораспределительная коробка) на 20 выходов",25000,0.15,21250]
[]
["Адаптеры для подключения плоских решеток (длина до 500)",5400,0.15,4590]
[]
["Магистральные воздуховоды и фасонные изделия",44045,null,{"$f":"B128","v":44045},"согласно счёта (см. правее)"]
["Изоляция, крепеж, расходные материалы",{"$f":"18600+1900+4614","v":25114},null,{"$f":"B129","v":25114},"согласно счёта (см. правее ниже)"]
[]
["Пленум SCHIBERG",4400,0.15,{"$f":"B131*0.85","v":3740}]
[]
["Установка диффузора/решётки",null,null,3000,"среднее значение"]
[]
[]
[]
[]
[]
[]
[]
[]
[null,null,null,null,null,null,null,null,null,null,null,null,null,null,null,null,null,null,null,null,"изоляция"]

{"sheet":"Работы","index":5,"n_rows":17,"n_cols":3,"rows_kept":17,"cut":false,"hidden":false,"merged":[]}
["ОПЛАТА РАБОТ ПО ВЕНТИЛЯЦИИ  прораб и бригада","бригада","прораб"]
["Монтаж вентиляционной установки (включая все подключения)+ пробный запуск с настройкой",20000,{"$f":"B2*20%","v":4000}]
["Монтаж системы увлажнения воздуха (включая все подключения) + пробный запуск с настройкой",10000,{"$f":"B3*20%","v":2000}]
["Монтаж датчикаов влажности (комплект)/пульта",1575,315]
["Установка стенового вентиля Out/in с проходными отверстиями",10000,2000]
["Установка и подключение приточного/вытяжного диффузора",700,140]
["Прокладка гибких воздуховодов до приточного/вытяжного диффузора (комплект на диффузор) с установкой муфты",3500,700]
["Установка распределительной коробки и подключение воздуховодов",3000,600]
["Прокладка трассы от установки до распределительной коробки (комплект)",6500,1300]
["Установка шумоглушителя",2500,500]
["ПНР ПВУ/ отдельный выезд + ГСМ",12500,2500]
["ПНР увлажнителя/ совместно с ПВУ",3500,700]
["Алмазное бурение",10000,2000]
["ГСМ",1500,300]
["Уборка мусора, наведение порядка на территории",1500,300]
["Вывоз мусора с объекта своими силами",2500,500]
["Разгрузо-погрузочные работы (скрытые и котельная)",1500,300]

{"sheet":"Турков (не брать)","index":6,"n_rows":79,"n_cols":13,"rows_kept":79,"cut":false,"hidden":false,"merged":[[6,0,14,0],[16,0,59,0],[60,0,60,6],[0,0,0,6],[1,1,1,6],[2,0,2,6],[3,0,3,6],[5,0,5,6],[72,5,72,6],[75,9,76,10],[79,9,80,10],[61,9,61,10],[63,0,63,4],[63,5,63,6],[65,0,65,6],[70,5,70,6],[64,0,64,4],[64,5,64,6]]}
[]
[{"$f":"TODAY()","v":"2023-07-07"},"Данный сметный расчёт действителен 7 календарных дней. По истечению срока, цены могут быть изменены."]
["Сметный расчет Вентиляция ",null,null,null,null,null,null,null,"пие"]
["Приточная вентиляция "]
["Материалы/услуги","Описание","Кол-во","Ед.изм","Мат-ал, руб","Работа, руб ","Итого, руб",null,"Материал","Бригада","Прораб","Итого","Рента"]
[]
[" Первый этап ","Воздуховод гофрированный 2-х слойный в бухте  50м ",3,"бухт",{"$f":"I7/0.7","v":75000},null,{"$f":"E7+F7","v":75000},null,{"$f":"C7*Узлы!D91","v":52500},null,null,{"$f":"SUM(I7:K7)","v":52500},{"$f":"IF(G7=0,\"\",(G7-I7)/G7)","v":0.3}]
[null,"Комплект прокладок, муфт, заглушек для гофрированного воздуховода (на 1 выход)",24,"шт",{"$f":"I8/0.7","v":38400},null,38400,null,{"$f":"C8*(Узлы!D92+Узлы!D93+Узлы!D94+Узлы!D95+Узлы!D96)","v":26880},null,null,{"$f":"SUM(I8:K8)","v":26880},{"$f":"IF(G8=0,\"\",(G8-I8)/G8)","v":0.3}]
[null,"Коллектор (воздухораспределительная коробка) на 8 выходов",null,"бухт",{"$f":"I9/0.85","v":0},null,0,null,{"$f":"C9*Узлы!D121","v":0},{"$f":"C9*Работы!$B$8","v":0},null,0,""]
[null,"Коллектор (воздухораспределительная коробка) на 12 выходов",2,"шт",{"$f":"I10/0.85","v":27600},null,27600,null,{"$f":"C10*Узлы!D122","v":23460},{"$f":"C10*Работы!$B$8","v":6000},{"$f":"J10*20%","v":1200},30660,0.15]
[null,"Коллектор (воздухораспределительная коробка) на 16 выходов",null,"шт",{"$f":"I11/0.85","v":0},null,0,null,{"$f":"C11*Узлы!D123","v":0},{"$f":"C11*Работы!$B$8","v":0},{"$f":"J11*20%","v":0},0,""]
[null,"Коллектор (воздухораспределительная коробка) на 20 выходов",null,"шт",{"$f":"I12/0.85","v":0},null,0,null,{"$f":"C12*Узлы!D124","v":0},{"$f":"C12*Работы!$B$8","v":0},0,0,""]
[null,"Муфты D125 для подключения диффузоров (монтаж трасс воздуховодов)",10,"шт",{"$f":"I13/0.7","v":53428.571428571435},null,53428.571428571435,null,{"$f":"C13*Узлы!D131","v":37400},{"$f":"C13*Работы!B7","v":35000},7000,79400,0.3000000000000001]
[null,"Адаптеры для подключения плоских решеток (длина до 500)",10,"шт",{"$f":"I14/0.85","v":54000},null,54000,null,{"$f":"C14*Узлы!D126","v":45900},{"$f":"C14*Работы!B7","v":35000},7000,87900,0.15]
[null,"Расходные материалы, крепёж",1,"шт",4285.7142857142862,null,4285.7142857142862,null,{"$f":"C15*Узлы!D117","v":3000},null,null,{"$f":"SUM(I15:K15)","v":3000},0.3000000000000001]
["Монтаж системы вентиляции 1 этап",null,null,null,null,{"$f":"SUM(J7:K14)/0.5","v":182400},null,null,null,null,null,0,{"$f":"IF(F16=0,\"\",(F16-SUM(J7:K15))/F16)","v":0.5}]
["Второй этап ","1. Приточно-вытяжная установка Zenit 500 Standart EL/EL Е  2ст рекуператором, с электронагревателем, автоматикой",null,"шт",{"$f":"I17/0.7","v":0},null,{"$f":"E17+F17","v":0},null,{"$f":"C17*Узлы!D11","v":0},{"$f":"C17*Работы!B2","v":0},0,0,{"$f":"IF(G17=0,\"\",(G17-I17)/G17)","v":""}]
[null,"Заслонка D200 с электроприводом и возвратной пружиной",null,"шт",{"$f":"I18/0.7","v":0},null,{"$f":"E18+F18","v":0},null,{"$f":"C18*Узлы!D12","v":0},null,null,0,{"$f":"IF(G18=0,\"\",(G18-I18)/G18)","v":""}]
[null,"Блок охлаждения 2,5кВт:",null,"шт",0,null,0,null,{"$f":"C19*(Узлы!D14+Узлы!D15)","v":0},null,null,0,""]
[null,"NEW COOL-BOX i 200D-600 2,5 кВт",null,"шт",0,null,0,null,{"$f":"C20*N20*$I$2","v":0},null,null,0,""]
[null,"ККБ NEW COOL-BOX k 2.5",null,"шт",0,null,0,null,0,null,null,0,""]
[null,"Комплект фильтров для первого обслуживания (Фильтр карманный F5, комплект 2 шт.)",null,"шт",0,null,0,null,{"$f":"C22*Узлы!D16","v":0},null,null,0,""]
[null,"Комбинированная приточно-вытяжная решётка 200D",null,"шт",0,null,0,null,{"$f":"C23*Узлы!D17","v":0},{"$f":"C23*Работы!B5","v":0},0,0,""]
[null,"1. Приточно-вытяжная установка Zenit 700 Standart EL/EL Е  2ст рекуператором, с электронагревателем, автоматикой",null,"шт",0,null,0,null,{"$f":"C24*Узлы!D19","v":0},{"$f":"C24*Работы!B2","v":0},0,0,""]
[null,"Заслонка D250 с электроприводом и возвратной пружиной",null,"шт",0,null,0,null,{"$f":"C25*Узлы!D20","v":0},null,null,0,""]
[null,"Блок охлаждения 3,5кВт:",null,"шт",0,null,0,null,{"$f":"C26*(Узлы!D22+Узлы!D23)","v":0},null,null,0,""]
[null,"NEW COOL-BOX i 250D-1000 3,5 кВт",null,"шт",0,null,0,null,{"$f":"C27*Узлы!D22","v":0},null,null,0,""]
[null,"ККБ NEW COOL-BOX k 3.5",null,"шт",0,null,0,null,{"$f":"C28*Узлы!D23","v":0},null,null,0,""]
[null,"Комплект фильтров для первого обслуживания (Фильтр карманный F5, комплект 2 шт.)",null,"шт",0,null,0,null,{"$f":"C29*Узлы!D24","v":0},null,null,0,""]
[null,"Комбинированная приточно-вытяжная решётка 250D",null,"шт",0,null,0,null,{"$f":"C30*Узлы!D25","v":0},{"$f":"C30*Работы!B5","v":0},0,0,""]
[null,"1. Приточно-вытяжная установка Zenit 350 HECO EL/EL Е с 3ступ рекуперацией с электронагревателем, автоматикой",null,"шт",0,null,0,null,{"$f":"C31*Узлы!D27","v":0},{"$f":"C31*Работы!B2","v":0},0,0,""]
[null,"Заслонка D160 с электроприводом и возвратной пружиной",null,"шт",0,null,0,null,{"$f":"C32*Узлы!D28","v":0},null,null,0,""]
[null,"Блок охлаждения 2,0кВт:",null,"шт",0,null,0,null,{"$f":"C33*(Узлы!D30+Узлы!D31)","v":0},null,null,0,""]
[null,"NEW COOL-BOX i 160D-400 2,0 кВ",null,"шт",0,null,0,null,{"$f":"C34*Узлы!D30","v":0},null,null,0,""]
[null,"ККБ NEW COOL-BOX k 2.0",null,"шт",0,null,0,null,{"$f":"C35*Узлы!D31","v":0},null,null,0,""]
[null,"Комплект фильтров для первого обслуживания (Фильтр карманный F5)",null,"шт",0,null,0,null,{"$f":"C36*Узлы!D32","v":0},null,null,0,""]
[null,"Комбинированная приточно-вытяжная решётка 160D",null,"шт",0,null,0,null,{"$f":"C37*Узлы!D33","v":0},{"$f":"C37*Работы!B5","v":0},0,0,""]
[null,"1. Приточно-вытяжная установка Zenit 550 HECO EL/EL E с рекуперацией с электронагревателем, автоматикой",1,"шт",320000,null,320000,null,{"$f":"C38*Узлы!D35","v":224000},{"$f":"C38*Работы!B2","v":20000},4000,248000,0.3]
[null,"Заслонка D200 с электроприводом и возвратной пружиной",null,"шт",0,null,0,null,{"$f":"C39*Узлы!D36","v":0},null,null,0,""]
[null,"Блок охлаждения 2,5кВт:",null,"шт",0,null,0,null,{"$f":"C40*(Узлы!D38+Узлы!D39)","v":0},null,null,0,""]
[null,"NEW COOL-BOX i 200D-600 2,5 кВт",null,"шт",0,null,0,null,{"$f":"C41*Узлы!D38","v":0},null,null,0,""]
[null,"ККБ NEW COOL-BOX k 2.5",null,"шт",0,null,0,null,{"$f":"C42*Узлы!D39","v":0},null,null,0,""]
[null,"Комплект фильтров для первого обслуживания (Фильтр карманный F5, комплект 2 шт.)",null,"шт",0,null,0,null,{"$f":"C43*Узлы!D40","v":0},null,null,0,""]
[null,"Комбинированная приточно-вытяжная решётка 200D",1,"шт",9750,null,9750,null,{"$f":"C44*Узлы!D41","v":6825},{"$f":"C44*Работы!B5","v":10000},2000,18825,0.3]
[null,"1. Приточно-вытяжная установка Zenit 750 HECO EL/EL E с рекуперацией с электронагревателем, автоматикой",null,"шт",0,null,0,null,{"$f":"C45*Узлы!D43","v":0},{"$f":"C45*Работы!B2","v":0},0,0,""]
[null,"Заслонка D250 с электроприводом и возвратной пружиной",null,"шт",0,null,0,null,{"$f":"C46*Узлы!D44","v":0},null,null,0,""]
[null,"Блок охлаждения 3,5кВт:",null,"шт",0,null,0,null,{"$f":"C47*(Узлы!D46+Узлы!D47)","v":0},null,null,0,""]
[null,"NEW COOL-BOX i 250D-1000 3,5 кВт",null,"шт",0,null,0,null,{"$f":"C48*Узлы!D46","v":0},null,null,0,""]
[null,"ККБ NEW COOL-BOX k 3.5",null,"шт",0,null,0,null,{"$f":"C49*Узлы!D47","v":0},null,null,0,""]
[null,"Комплект фильтров для первого обслуживания (Фильтр карманный F5, комплект 2 шт.)",null,"шт",0,null,0,null,{"$f":"C50*Узлы!D48","v":0},null,null,0,""]
[null,"Комбинированная приточно-вытяжная решётка 250D",null,"шт",0,null,0,null,{"$f":"C51*Узлы!D49","v":0},{"$f":"C51*Работы!B5","v":0},0,0,""]
[null,"Кронштейны для напольного/настенного крепления",1,"компл.",{"$f":"I52/0.7","v":5000},null,{"$f":"E52+F52","v":5000},null,{"$f":"C52*Узлы!D97","v":3500},null,null,3500,0.3]
[null,"Электроподключения установки, пульта, заслонок",1,"компл.",{"$f":"I53/0.7","v":5178.5714285714294},null,{"$f":"E53+F53","v":5178.5714285714294},null,{"$f":"C53*Узлы!D118","v":3625},null,null,3625,0.3000000000000001]
[null,"Датчик СО2 ",2,"шт",{"$f":"I54/0.7","v":20400},null,20400,null,{"$f":"C54*Узлы!D86","v":14280},null,null,14280,0.3]
[null,"Пульт в сборе",1,"шт",{"$f":"I55/0.7","v":25000},null,25000,null,{"$f":"C55*Узлы!D89","v":17500},null,null,17500,0.3]
[null,"Блок увлажнителя",null,"компл.",null,null,null,null,null,null,null,{"$f":"SUM(I56:K56)","v":0},""]
[null,"Комплект шумоглушителей и дроссельных клапанов (2шумоглишителя, 2клапана)",1,"компл.",{"$f":"I57/0.7","v":27854.285714285717},null,27854.285714285717,null,{"$f":"C57*Узлы!D119","v":19498},{"$f":"C57*(Работы!B10*2)","v":5000},1000,25498,0.3000000000000001]
[null,"Магистральные воздуховоды и фасонные изделия",1,"компл.",{"$f":"I58/0.7","v":62921.428571428572},null,62921.428571428572,null,{"$f":"C58*Узлы!D128","v":44045},{"$f":"C10*Работы!B9","v":13000},2600,59645,0.3]
[null,"Установка диффузора/решётки",20,"шт",{"$f":"I59/0.7","v":85714.285714285725},null,85714.285714285725,null,{"$f":"C59*Узлы!D133","v":60000},null,null,60000,0.3000000000000001]
[null,"Изоляция, крепеж, расходные материалы",1,"компл.",35877.142857142862,null,35877.142857142862,null,{"$f":"C60*Узлы!D129","v":25114},null,null,25114,0.3000000000000001]
[null,null,null,null,null,null,null,null,null,null,null,null,{"$f":"IF(G61=0,\"\",(G61-L61)/G61)","v":""}]
["Проектирование","разработка документов для монтажа системы вентиляции",null,"Усл.",null,{"$f":"(J62+K62)/0.8","v":0},{"$f":"E62+F62","v":0},null,null,null,null,{"$f":"SUM(J62:K62)","v":0},""]
["Монтаж системы вентиляции 2 этап",null,null,"Усл.",null,{"$f":"SUM(J17:K60)/0.5","v":115200},{"$f":"F63","v":115200},null,null,null,null,{"$f":"SUM(J63:K63)","v":0},{"$f":"IF(G63=0,\"\",(G63-SUM(J17:K60))/G63)","v":0.5}]
["Итого материал:                                                                                                                                                                                                                                                ",null,null,null,null,{"$f":"SUM(E7:E60)","v":850409.99999999988},null,null,null,null,null,{"$f":"SUM(I7:I63)","v":607527},{"$f":"IF(F64=0,\"\",(F64-L64)/F64)","v":0.28560694253360136}]
["Работа:                                                                                                                                                                                                                                                        ",null,null,null,null,{"$f":"SUM(F7:F63)","v":297600},null,null,null,null,null,{"$f":"SUM(J7:K63)","v":148800},{"$f":"IF(F65=0,\"\",(F65-L65)/F65)","v":0.5}]
["Дополнительно"]
["Материалы/услуги","Описание","Кол-во","Ед.изм","Мат-ал, руб","Работа, руб ","Итого, руб",null,"Материал","Бригада","Прораб","Итого","Рента"]
["Проходные отверстия в плите","Алмазное сверление",1,"шт.",null,{"$f":"IF(C68=0,0,IF(C68<4,11000,IF(C68>3,9000+2300*(C68-3))))","v":11000},{"$f":"F68+E68","v":11000},null,null,10000]
["Подготовительные и накладные расходы","Включают разработку комплекта документов для монтажа, проверку ОТК и приемку каждого этапа работ инженерами технического надзора, соблюдение стандарта компании",1,"Усл.",null,{"$f":"51000","v":51000},{"$f":"F69*C69","v":51000},null,{"$f":"12500+(C59*700)","v":26500},{"$f":"(1500+1500+1500)*2","v":9000},{"$f":"2500*2","v":5000},{"$f":"(5500*2)+6500","v":17500}]
["Транспортные расходы ","Доставка оборудования и материалов на объект",1,"усл.",null,{"$f":"L70/0.8","v":37500},{"$f":"F70","v":37500},null,null,null,null,30000]
["Итого по смете:",null,null,null,null,{"$f":"SUM(F64:G65,G68:G70)","v":1247510},null,null,{"$f":"SUM(I7:I63)+I69","v":634027},{"$f":"SUM(J7:J63,J68:J70)","v":143000},{"$f":"SUM(K7:K63,K68:K70)","v":29800},{"$f":"SUM(L68:L70,I71:K71)","v":854327},{"$f":"IF(F73=0,\"\",(F73-L71)/F73)","v":0.31517422706030412}]
["Скидка:"]
["Итого по смете со скидкой:",null,null,null,null,{"$f":"F71-G72","v":1247510}]
["* При выполнении разводки под потолком необходимо добавить декоративный короб. При выполнении разводки в межэтажном перекрытии необходима дополнительная обрешётка."]
["** ПНР  выполняется по факту готовности объекта",null,null,null,null,null,{"$f":"Узлы!D1","v":"2023-07-07"}]
[null,null,null,null,null,null,null,null,null,"Коэффициент"]
[]
[null,null,null,null,null,null,null,null,null,"Мат","Раб"]
[null,null,null,null,null,null,null,null,null,1,1]